bitfinex-derivatives/quotes_BTCF0:USTF0_20251030
["timestamp","ask_amount","ask_price","bid_price","bid_amount"]
[1761832762317,0.0441,107770.0,107760.0,0.3608]
[1761832762518,0.42658497,107770.0,107760.0,0.3608]
[1761832762817,0.28658497,107770.0,107750.0,0.3608]
[1761832763117,0.56658497,107770.0,107760.0,0.406]
[1761832763504,0.42503403,107770.0,107760.0,0.406]
[1761832763905,0.16703403,107770.0,107760.0,0.406]
[1761832764111,0.0661,107770.0,107760.0,0.406]
[1761832764420,0.3261,107770.0,107760.0,0.3608]
[1761832764919,0.3271,107770.0,107760.0,0.3608]
[1761832765218,0.56958497,107770.0,107760.0,0.38401]
[1761832765416,0.56958497,107770.0,107760.0,0.406]
[1761832765715,0.669519,107770.0,107760.0,0.406]
[1761832765925,0.0451,107770.0,107760.0,0.406]
[1761832766216,0.0461,107770.0,107760.0,0.406]
[1761832766419,0.1861,107770.0,107760.0,0.406]
[1761832766626,0.3361,107770.0,107760.0,0.406]
[1761832767119,0.3361,107770.0,107730.0,1.8608]
[1761832767120,0.0441,107750.0,107730.0,1.8608]
[1761832767421,0.0441,107750.0,107740.0,0.406]
[1761832767608,0.02263,107750.0,107740.0,0.406]
[1761832767922,0.0441,107750.0,107740.0,0.406]
[1761832768122,0.05691,107760.0,107750.0,0.0452]
[1761832768322,0.36691,107760.0,107750.0,0.406]
[1761832768620,0.57939497,107760.0,107750.0,0.406]
[1761832768821,0.33691,107760.0,107750.0,0.0452]
[1761832769020,0.57939497,107760.0,107750.0,0.0452]
[1761832769221,0.0441,107750.0,107740.0,0.406]
[1761832769523,0.29939497,107760.0,107750.0,0.0452]
[1761832769724,0.6543468,107760.0,107750.0,0.0452]
[1761832770118,0.6102468,107760.0,107740.0,0.3608]
[1761832770420,0.28658497,107750.0,107740.0,0.406]
[1761832770625,0.41658497,107750.0,107740.0,0.3608]
[1761832771425,0.52658497,107750.0,107740.0,0.3608]
[1761832771725,0.626519,107750.0,107740.0,0.3608]
[1761832772225,0.0441,107730.0,107720.0,0.00010306]
[1761832772412,0.98638497,107730.0,107720.0,0.00010306]
[1761832772718,1.01131579,107730.0,107720.0,0.00010306]
[1761832773329,0.05191,107700.0,107690.0,0.406]
[1761832773621,0.62439497,107700.0,107680.0,1.8608]
[1761832773820,0.28658497,107690.0,107660.0,0.3608]
[1761832774020,0.3141,107690.0,107680.0,0.406]
[1761832774326,0.55567234,107690.0,107680.0,0.0452]
[1761832774526,0.05691,107680.0,107670.0,1.8608]
[1761832774912,0.0441,107680.0,107670.0,1.8608]
[1761832775118,8.737e-05,107690.0,107680.0,0.05719]
[1761832775423,8.737e-05,107690.0,107680.0,0.41799]
[1761832775624,0.04518737,107690.0,107680.0,0.406]
[1761832775825,0.00108737,107690.0,107680.0,0.407]
[1761832776120,0.28767234,107690.0,107680.0,0.38501]
[1761832776313,0.04518737,107690.0,107680.0,0.406]
[1761832776519,0.04418737,107690.0,107680.0,0.408]
[1761832776927,8.737e-05,107690.0,107680.0,0.408]
[1761832777321,0.04418737,107690.0,107680.0,0.408]
[1761832777524,8.737e-05,107690.0,107680.0,0.408]
[1761832777724,0.04418737,107690.0,107680.0,0.408]
[1761832779021,0.53667234,107690.0,107680.0,0.38401]
[1761832779214,0.38960637,107690.0,107680.0,0.407]
[1761832779423,0.40960637,107690.0,107680.0,0.407]
[1761832779628,0.73060637,107690.0,107680.0,0.407]
[1761832779821,0.63067234,107690.0,107680.0,0.407]
[1761832780125,0.39018737,107690.0,107680.0,0.407]
[1761832780529,0.63267234,107690.0,107680.0,0.407]
[1761832780723,0.63267234,107690.0,107680.0,0.3618]
[1761832780928,0.63267234,107690.0,107680.0,0.001]
[1761832781930,0.73260637,107690.0,107680.0,0.001]
[1761832782833,0.73260637,107690.0,107680.0,0.0462]
[1761832783032,0.4901214,107690.0,107680.0,0.0462]
[1761832783231,0.39018737,107690.0,107680.0,0.0462]
[1761832783734,0.63267234,107690.0,107680.0,0.02421]
[1761832783933,0.39018737,107690.0,107680.0,0.02421]
[1761832784232,0.63267234,107690.0,107680.0,0.001]
[1761832784434,0.39260637,107690.0,107680.0,1.501]
[1761832784624,0.68260637,107690.0,107680.0,1.501]
[1761832784820,1.04340637,107690.0,107680.0,0.001]
[1761832785033,0.8009214,107690.0,107680.0,0.001]
[1761832785230,0.75340637,107690.0,107680.0,0.001]
[1761832785434,1.07340637,107690.0,107680.0,1.501]
[1761832785636,1.07340637,107690.0,107680.0,0.001]
[1761832786432,1.16627327,107690.0,107680.0,0.001]
[1761832787137,0.9237883,107690.0,107680.0,0.001]
[1761832787328,1.16627327,107690.0,107680.0,0.001]
[1761832787833,1.23890412,107690.0,107680.0,0.001]
[1761832788234,0.1497852,107680.0,107670.0,1.5]
[1761832788430,1.08307017,107680.0,107670.0,1.5]
[1761832788629,0.75307017,107680.0,107670.0,1.5]
[1761832788932,1.08307017,107680.0,107670.0,1.5]
[1761832789323,0.94051923,107680.0,107670.0,1.5]
[1761832789629,1.1940042,107680.0,107670.0,1.5]
[1761832790334,1.1654442,107680.0,107670.0,1.5]
[1761832790630,1.06551017,107680.0,107670.0,1.5]
[1761832791436,1.42631017,107680.0,107670.0,1.5]
[1761832791930,0.8454442,107680.0,107670.0,1.8608]
[1761832792137,0.4830252,107680.0,107670.0,1.8608]
[1761832792932,0.4261152,107680.0,107670.0,1.8608]
[1761832793129,0.4251152,107680.0,107670.0,1.8608]
[1761832793334,0.1197552,107680.0,107670.0,1.8618]
[1761832793843,0.1207552,107680.0,107670.0,1.8618]
[1761832794340,0.24248497,107690.0,107680.0,0.05648]
[1761832794533,0.56685497,107690.0,107680.0,0.41728]
[1761832795443,0.2868999,107690.0,107680.0,0.41728]
[1761832795840,0.00704493,107690.0,107680.0,0.41828]
[1761832796228,0.01004493,107690.0,107680.0,0.41828]
[1761832797544,0.01004493,107690.0,107680.0,0.66356497]
[1761832797744,0.01004493,107690.0,107680.0,0.5139553]
[1761832797946,0.0928508,107710.0,107700.0,0.05648]
[1761832798145,0.0928508,107710.0,107700.0,0.41728]
[1761832798548,0.2772208,107710.0,107700.0,0.41728]
[1761832799045,0.58718355,107710.0,107700.0,0.41728]
[1761832799245,0.92960255,107710.0,107700.0,0.41728]
[1761832799449,0.92960255,107710.0,107700.0,0.39724]
[1761832799450,0.95094872,107710.0,107700.0,0.39724]
[1761832799642,0.95094872,107710.0,107700.0,0.38457]
[1761832800445,0.95094872,107710.0,107700.0,0.41828]
[1761832800446,0.43409375,107710.0,107700.0,0.41828]
[1761832800642,0.30481355,107710.0,107700.0,0.41828]
[1761832801046,0.02442305,107740.0,107700.0,1.16627097]
[1761832801249,0.06083305,107740.0,107730.0,0.3608]
[1761832801436,0.04437,107730.0,107720.0,0.69296]
[1761832801638,0.31007599,107730.0,107720.0,0.3608]
[1761832801848,0.31007599,107730.0,107710.0,0.3608]
[1761832801849,0.0579,107720.0,107710.0,0.3608]
[1761832802044,0.61351532,107720.0,107710.0,0.3608]
[1761832802548,0.04437,107710.0,107700.0,0.3608]
[1761832802747,0.04437,107710.0,107690.0,0.69296]
[1761832802748,0.62996374,107710.0,107690.0,0.69296]
[1761832802949,0.30038497,107700.0,107690.0,0.3608]
[1761832803150,0.30038497,107700.0,107680.0,0.3608]
[1761832803151,1.02429415,107700.0,107680.0,0.3608]
[1761832803452,0.37649,107690.0,107680.0,0.3608]
[1761832803955,0.39649,107690.0,107680.0,1.8608]
[1761832804248,0.37649,107690.0,107680.0,1.8608]
[1761832804442,0.39649,107690.0,107680.0,1.8608]
[1761832804642,0.37649,107690.0,107680.0,1.8608]
[1761832804847,0.14430403,107690.0,107680.0,1.8608]
[1761832805043,0.0579,107700.0,107680.0,2.19895897]
[1761832805356,0.001,107710.0,107700.0,0.0928579]
[1761832805648,0.04388,107710.0,107700.0,0.3608]
[1761832805857,0.02388,107710.0,107700.0,0.9608]
[1761832806051,0.0579,107720.0,107700.0,0.9607]
[1761832806250,0.10092264,107720.0,107710.0,0.3608]
[1761832806455,0.34340761,107720.0,107710.0,0.3608]
[1761832806751,0.04437,107710.0,107700.0,0.3607]
[1761832806953,0.06637,107710.0,107700.0,0.3607]
[1761832807146,0.04637,107710.0,107700.0,0.3607]
[1761832807354,0.002,107710.0,107700.0,0.9607]
[1761832807551,0.01353,107720.0,107700.0,0.3607]
[1761832807851,0.03947477,107720.0,107710.0,0.3636]
[1761832808054,0.05947477,107720.0,107710.0,0.3608]
[1761832808245,0.10384477,107720.0,107710.0,0.3608]
[1761832808448,0.03947477,107720.0,107710.0,0.3608]
[1761832808649,0.006,107720.0,107710.0,0.69613427]
[1761832808944,0.01953,107720.0,107710.0,0.3608]
[1761832809357,0.01353,107720.0,107710.0,0.3608]
[1761832809555,0.0829,107720.0,107710.0,0.3608]
[1761832809758,0.3629,107720.0,107710.0,0.3608]
[1761832810062,0.0649,107720.0,107710.0,0.3608]
[1761832810558,0.21483403,107720.0,107710.0,0.3608]
[1761832810759,0.0649,107720.0,107710.0,0.3608]
[1761832811350,0.0849,107720.0,107710.0,0.3608]
[1761832811655,0.0799,107720.0,107710.0,0.3608]
[1761832811854,0.2649,107720.0,107710.0,0.3608]
[1761832812148,0.53023289,107720.0,107710.0,0.3608]
[1761832812360,0.53023397,107720.0,107710.0,0.3608]
[1761832812562,0.50738497,107720.0,107710.0,0.3608]
[1761832812950,0.607319,107720.0,107710.0,0.3608]
[1761832813150,0.63016853,107720.0,107710.0,0.3608]
[1761832813752,0.38768356,107720.0,107710.0,0.3608]
[1761832813960,0.63016853,107720.0,107710.0,0.3608]
[1761832814254,0.38768356,107720.0,107710.0,0.3608]
[1761832814452,0.08774953,107720.0,107710.0,0.3608]
[1761832814861,0.0649,107720.0,107710.0,0.3608]
[1761832815061,0.66988652,107720.0,107710.0,0.3608]
[1761832815261,0.42740155,107720.0,107710.0,0.3608]
[1761832815461,0.10740168,107720.0,107710.0,0.3608]
[1761832815652,0.3449,107720.0,107710.0,0.3608]
[1761832815853,0.36740171,107720.0,107710.0,0.3608]
[1761832816048,0.08740171,107720.0,107710.0,0.3608]
[1761832816255,0.02053,107720.0,107710.0,0.3608]
[1761832816655,0.007,107720.0,107710.0,1.0536572]
[1761832816855,0.00203178,107720.0,107710.0,0.86318598]
[1761832817052,0.00203178,107720.0,107710.0,0.4564572]
[1761832817561,0.34686178,107720.0,107710.0,0.3608]
[1761832818166,0.44679581,107720.0,107710.0,0.3608]
[1761832818662,0.34686178,107720.0,107710.0,0.3608]
[1761832819460,0.07686178,107720.0,107710.0,0.3608]
[1761832819652,0.04768178,107720.0,107710.0,0.3608]
[1761832819857,0.00203178,107720.0,107710.0,0.9608]
[1761832820062,0.09686178,107720.0,107710.0,0.3608]
[1761832820261,0.07686178,107720.0,107710.0,0.3608]
[1761832820565,0.36686178,107720.0,107710.0,0.3608]
[1761832820965,0.48890346,107720.0,107710.0,0.3608]
[1761832821359,0.09896943,107720.0,107710.0,0.3608]
[1761832821662,0.00203178,107720.0,107710.0,1.93410314]
[1761832821857,0.07579884,107760.0,107720.0,0.0928436]
[1761832822057,0.34290114,107760.0,107750.0,0.7216]
[1761832822258,0.09290114,107760.0,107750.0,0.7216]
[1761832822654,0.09290114,107760.0,107750.0,1.4172236]
[1761832822655,0.02211114,107760.0,107750.0,1.4172236]
[1761832822850,0.02211114,107760.0,107750.0,0.8172236]
[1761832823053,0.02211114,107760.0,107750.0,0.8144236]
[1761832823256,0.02211114,107760.0,107750.0,1.55591238]
[1761832823459,0.02461859,107780.0,107770.0,0.0928064]
[1761832823656,0.02461859,107790.0,107780.0,0.0927978]
[1761832823959,0.02461859,107800.0,107780.0,0.86312658]
[1761832824163,0.02461859,107810.0,107790.0,0.7855492]
[1761832824358,0.02461859,107810.0,107800.0,0.3608]
[1761832824763,0.02461859,107810.0,107800.0,0.4535806]
[1761832825068,0.02461859,107810.0,107800.0,0.86310938]
[1761832825271,0.03282479,107820.0,107800.0,0.86030938]
[1761832825272,0.02461859,107820.0,107800.0,0.86030938]
[1761832825569,0.02461859,107820.0,107810.0,0.785492]
[1761832825874,0.03282479,107830.0,107820.0,0.4535634]
[1761832826063,0.03275466,107850.0,107840.0,0.0927462]
[1761832826255,0.04922827,107860.0,107840.0,0.0927462]
[1761832826256,0.01667,107860.0,107840.0,1.05348]
[1761832826460,0.34393,107860.0,107850.0,0.3608]
[1761832826767,0.07393,107840.0,107830.0,0.69268]
[1761832826966,0.07393,107840.0,107830.0,0.7216]
[1761832827571,0.04612,107840.0,107830.0,0.7216]
[1761832827761,0.01667,107840.0,107830.0,0.7216]
[1761832828163,0.07393,107840.0,107830.0,0.7216]
[1761832828361,0.07393,107840.0,107830.0,0.3608]
[1761832828566,0.33393,107840.0,107830.0,0.3608]
[1761832828763,0.05726,107830.0,107820.0,0.39400058]
[1761832828962,0.07393,107820.0,107810.0,0.03320058]
[1761832829270,0.05726,107810.0,107800.0,0.39400058]
[1761832829462,0.05726,107810.0,107800.0,0.03320058]
[1761832829655,0.01667,107800.0,107790.0,0.44400582]
[1761832829857,0.01667,107820.0,107790.0,0.81753402]
[1761832830060,0.01667,107820.0,107800.0,0.39672226]
[1761832830061,0.07393,107820.0,107800.0,0.39672226]
[1761832830366,0.09393,107820.0,107810.0,0.3608]
[1761832830569,0.05726,107810.0,107800.0,0.3608]
[1761832831068,0.01667,107800.0,107790.0,0.39392226]
[1761832831371,0.07393,107800.0,107790.0,0.39392226]
[1761832831573,0.33393,107800.0,107790.0,0.3608]
[1761832831763,0.07393,107800.0,107790.0,0.3608]
[1761832832771,0.01667,107800.0,107790.0,0.3608]
[1761832833165,0.04612,107800.0,107790.0,0.3608]
[1761832833383,0.31393,107800.0,107790.0,0.3608]
[1761832833567,0.41386403,107800.0,107790.0,0.3608]
[1761832833767,0.17386403,107800.0,107790.0,0.3608]
[1761832834076,0.07493,107800.0,107790.0,0.37410871]
[1761832834572,0.35493,107800.0,107790.0,0.37410871]
[1761832834775,0.07493,107800.0,107790.0,0.37410871]
[1761832835864,0.04712,107800.0,107790.0,0.3608]
[1761832836070,0.01767,107800.0,107790.0,0.3608]
[1761832836372,0.01767,107800.0,107790.0,0.9636]
[1761832836583,0.01767,107800.0,107790.0,0.3636]
[1761832836872,0.04712,107800.0,107790.0,0.3608]
[1761832837071,0.07493,107800.0,107790.0,0.3608]
[1761832837470,0.17486403,107800.0,107790.0,0.3608]
[1761832837673,0.07493,107800.0,107790.0,0.3608]
[1761832837975,0.04712,107800.0,107790.0,0.3608]
[1761832838571,0.07493,107800.0,107790.0,0.3608]
[1761832839478,0.17486403,107800.0,107790.0,0.37413222]
[1761832839776,0.17486403,107800.0,107790.0,0.3608]
[1761832839975,0.04712,107800.0,107790.0,0.3608]
[1761832840177,0.01767,107800.0,107790.0,0.3608]
[1761832840373,0.20493,107800.0,107790.0,0.3608]
[1761832840572,0.07493,107800.0,107790.0,0.3608]
[1761832840770,0.01767,107800.0,107790.0,0.37411209]
[1761832840979,0.01767,107800.0,107790.0,0.3608]
[1761832841382,0.07493,107800.0,107790.0,0.3608]
[1761832841579,0.01767,107800.0,107790.0,0.86031798]
[1761832841880,0.001,107800.0,107790.0,0.86311798]
[1761832842876,0.01767,107800.0,107790.0,0.86031798]
[1761832843177,0.01767,107800.0,107790.0,0.3608]
[1761832843369,0.001,107800.0,107790.0,0.86311798]
[1761832843569,0.04712,107800.0,107790.0,0.3608]
[1761832843981,0.07493,107800.0,107790.0,0.3608]
[1761832844572,0.01767,107800.0,107790.0,0.3608]
[1761832844773,0.01767,107800.0,107790.0,0.3636]
[1761832844974,0.001,107800.0,107790.0,0.4563892]
[1761832845479,0.01767,107800.0,107790.0,0.4535891]
[1761832845784,0.001,107800.0,107790.0,0.4563891]
[1761832846174,0.001,107800.0,107790.0,0.86311788]
[1761832846375,8.06e-05,107800.0,107790.0,1.03516685]
[1761832846576,8.06e-05,107800.0,107790.0,1.63516685]
[1761832847172,8.06e-05,107800.0,107790.0,1.65204983]
[1761832847377,8.06e-05,107800.0,107790.0,0.64252105]
[1761832847577,0.0167506,107800.0,107790.0,0.6257314]
[1761832847883,0.01667,107820.0,107800.0,0.0927804]
[1761832848084,0.01667,107820.0,107810.0,0.74651164]
[1761832848478,0.01667,107820.0,107810.0,0.83928354]
[1761832848786,0.01667,107820.0,107810.0,0.74651164]
[1761832848977,0.01667,107840.0,107820.0,0.0927603]
[1761832848978,0.04612,107840.0,107820.0,0.0927603]
[1761832849278,0.07393,107840.0,107830.0,0.3608]
[1761832849874,0.50065878,107840.0,107830.0,0.3608]
[1761832850075,0.69593,107840.0,107830.0,0.3608]
[1761832850278,0.67593,107840.0,107830.0,0.3608]
[1761832850588,0.37747,107880.0,107830.0,0.59500073]
[1761832850787,0.37393,107880.0,107870.0,0.3608]
[1761832850976,0.02945,107870.0,107860.0,0.3608]
[1761832851180,0.05582,107870.0,107860.0,0.3608]
[1761832852678,0.15575403,107870.0,107860.0,0.3608]
[1761832852989,0.15675403,107870.0,107860.0,0.3608]
[1761832853184,0.05682,107870.0,107860.0,0.3608]
[1761832853584,0.02737,107870.0,107860.0,0.3608]
[1761832853790,0.003,107870.0,107860.0,0.76752878]
[1761832854289,0.05738,107870.0,107860.0,1.8608]
[1761832854690,0.05738,107870.0,107860.0,1.89401553]
[1761832855986,0.03101,107870.0,107860.0,1.89401553]
[1761832856490,0.05738,107870.0,107860.0,1.89401553]
[1761832856678,0.05838,107870.0,107860.0,1.88569785]
[1761832858200,0.07838,107870.0,107860.0,1.88569785]
[1761832858490,0.89838,107870.0,107860.0,1.88569785]
[1761832858889,1.06870878,107870.0,107860.0,1.5]
[1761832859292,0.76191403,107870.0,107860.0,1.5]
[1761832859495,1.16584281,107870.0,107860.0,1.5]
[1761832859788,0.15831403,107870.0,107860.0,1.8608]
[1761832859999,0.15831403,107870.0,107860.0,1.88569785]
[1761832860197,0.05838,107870.0,107860.0,1.88569785]
[1761832860489,0.004,107870.0,107860.0,1.97842675]
[1761832860693,0.004,107870.0,107860.0,1.88569785]
[1761832860894,0.004,107870.0,107860.0,2.38515553]
[1761832861090,0.004,107870.0,107860.0,2.72779321]
[1761832861387,0.004,107870.0,107860.0,2.72499321]
[1761832861587,0.004,107870.0,107860.0,2.72779321]
[1761832861792,0.004,107870.0,107860.0,2.86600644]
[1761832862289,0.002,107870.0,107860.0,2.45647766]
[1761832862595,0.002,107870.0,107860.0,2.21715982]
[1761832862596,0.05538,107870.0,107860.0,2.21715982]
[1761832862986,0.001,107870.0,107860.0,1.88563982]
[1761832863293,0.06981,107880.0,107860.0,2.3870968]
[1761832863485,0.04344,107880.0,107870.0,0.76752878]
[1761832863693,0.07105,107900.0,107870.0,0.8878889]
[1761832863892,0.01667,107900.0,107890.0,1.22103148]
[1761832864096,0.01667,107920.0,107900.0,0.0926933]
[1761832864401,0.01667,107920.0,107910.0,1.12832878]
[1761832864695,0.3608,107950.0,107910.0,1.22101428]
[1761832864894,0.01543,107960.0,107940.0,0.76752878]
[1761832865092,0.02801,107950.0,107940.0,0.76752878]
[1761832865298,0.01543,107960.0,107940.0,1.22374848]
[1761832865499,0.01543,107960.0,107950.0,0.76752878]
[1761832865795,0.04344,107960.0,107950.0,0.76752878]
[1761832865994,0.04344,107960.0,107950.0,0.3608]
[1761832866194,0.04644,107960.0,107950.0,0.3608]
[1761832866390,0.01843,107960.0,107950.0,0.76752878]
[1761832866594,0.003,107960.0,107950.0,0.76752878]
[1761832866797,0.07281,107960.0,107950.0,0.3608]
[1761832866991,0.05438,107950.0,107940.0,0.3608]
[1761832867191,0.06981,107940.0,107930.0,0.3608]
[1761832867391,0.02801,107930.0,107920.0,0.3608]
[1761832867595,0.05438,107930.0,107920.0,0.3608]
[1761832868193,0.16438,107930.0,107920.0,0.3608]
[1761832868395,0.01543,107920.0,107910.0,0.3608]
[1761832868600,0.06981,107920.0,107910.0,0.3608]
[1761832868900,0.05438,107910.0,107900.0,0.3608]
[1761832869095,0.01543,107920.0,107900.0,0.76752878]
[1761832869302,0.06981,107920.0,107910.0,0.3608]
[1761832869791,0.07081,107920.0,107910.0,0.3608]
[1761832869989,0.01643,107920.0,107910.0,0.76752878]
[1761832870600,0.01643,107920.0,107910.0,0.3608]
[1761832870799,0.07081,107920.0,107910.0,0.3608]
[1761832870993,0.09081,107920.0,107910.0,0.3608]
[1761832871188,0.05438,107910.0,107900.0,0.3608]
[1761832871899,0.30438,107910.0,107900.0,0.3608]
[1761832872101,0.05438,107910.0,107900.0,0.3620676]
[1761832872304,0.07438,107910.0,107900.0,0.3620676]
[1761832872492,0.05438,107910.0,107900.0,0.3816521]
[1761832872698,0.34783,107920.0,107900.0,0.3816521]
[1761832873008,0.01543,107920.0,107910.0,0.3608]
[1761832873188,0.06981,107920.0,107910.0,0.3620676]
[1761832873591,0.06981,107920.0,107910.0,0.3806521]
[1761832873802,0.01543,107920.0,107910.0,0.78738088]
[1761832874202,0.04644,107920.0,107910.0,0.3806521]
[1761832874405,0.07281,107920.0,107910.0,0.3806521]
[1761832874704,0.19281,107920.0,107910.0,0.0198521]
[1761832874900,0.39281,107920.0,107910.0,0.0198521]
[1761832875502,0.39681,107920.0,107910.0,0.0198521]
[1761832875800,1.16509878,107920.0,107910.0,0.0198521]
[1761832875999,0.80153878,107920.0,107910.0,0.0198521]
[1761832876204,0.07481,107920.0,107910.0,0.0198521]
[1761832876511,0.41145,107920.0,107910.0,0.3806521]
[1761832876890,0.02443,107920.0,107910.0,0.78738088]
[1761832877297,0.02443,107920.0,107910.0,0.88282668]
[1761832877599,0.009,107920.0,107910.0,1.34242047]
[1761832877800,0.009,107920.0,107910.0,1.12282664]
[1761832878301,0.01543,107940.0,107930.0,0.0926686]
[1761832878491,0.01543,107940.0,107930.0,1.07442561]
[1761832878691,0.01543,107940.0,107930.0,1.67442561]
[1761832878895,0.01543,107960.0,107940.0,0.0926585]
[1761832879096,0.01543,107960.0,107950.0,0.7216]
[1761832879402,0.01543,107960.0,107950.0,0.96444011]
[1761832879607,0.01543,107960.0,107950.0,0.98302461]
[1761832880012,0.04381,107960.0,107950.0,0.98302461]
[1761832880209,0.08823,107960.0,107950.0,0.0198521]
[1761832880406,0.07123,107960.0,107950.0,0.3806521]
[1761832880705,0.06723,107960.0,107950.0,0.3806521]
[1761832880905,0.02443,107960.0,107950.0,0.62222461]
[1761832881109,0.02443,107960.0,107950.0,1.31487601]
[1761832881300,0.02443,107960.0,107950.0,1.22222461]
[1761832881603,0.02443,107960.0,107950.0,0.62222461]
[1761832881799,0.07349,107960.0,107950.0,0.3806521]
[1761832881998,0.07349,107960.0,107950.0,0.62222461]
[1761832882394,0.07349,107960.0,107950.0,0.3806521]
[1761832882598,0.06549,107960.0,107950.0,0.3806521]
[1761832883211,0.06549,107960.0,107950.0,0.62222461]
[1761832883505,0.06549,107960.0,107950.0,0.3806521]
[1761832883704,0.16442403,107960.0,107950.0,0.3816521]
[1761832883894,0.34442403,107960.0,107950.0,0.3816521]
[1761832884098,0.70522403,107960.0,107950.0,0.0208521]
[1761832884302,0.94955654,107960.0,107950.0,0.0208521]
[1761832884502,0.06386,107940.0,107930.0,0.3608]
[1761832884698,0.0487,107930.0,107920.0,0.3608]
[1761832884905,0.1787,107930.0,107920.0,0.3608]
[1761832885110,0.0487,107930.0,107920.0,0.3608]
[1761832885401,0.0487,107930.0,107910.0,0.38555006]
[1761832885402,0.05938,107920.0,107910.0,0.38555006]
[1761832885609,0.05938,107920.0,107900.0,0.38555006]
[1761832885610,0.0487,107910.0,107900.0,0.38555006]
[1761832885999,0.98107251,107910.0,107900.0,0.02475006]
[1761832886302,0.06386,107900.0,107890.0,0.41888975]
[1761832886503,0.08386,107900.0,107890.0,0.38567422]
[1761832886805,0.08386,107900.0,107890.0,0.3608]
[1761832887007,0.06386,107900.0,107890.0,0.39401553]
[1761832887201,0.11509403,107900.0,107890.0,0.63558804]
[1761832887507,0.02016,107900.0,107890.0,0.65237775]
[1761832887709,0.01516,107920.0,107890.0,0.74788055]
[1761832887905,0.06386,107920.0,107910.0,0.62725263]
[1761832888105,0.06386,107920.0,107910.0,0.38568012]
[1761832888810,0.06386,107920.0,107910.0,0.02488012]
[1761832888811,0.08386,107920.0,107910.0,0.02488012]
[1761832888999,0.39686,107920.0,107910.0,0.02488012]
[1761832889200,0.06686,107920.0,107910.0,0.02488012]
[1761832889406,0.74766,107920.0,107910.0,0.02488012]
[1761832889602,0.98923251,107920.0,107910.0,0.02488012]
[1761832889810,1.09192654,107920.0,107910.0,0.02488012]
[1761832890105,1.69192654,107920.0,107910.0,0.02488012]
[1761832890309,0.0487,107910.0,107900.0,0.02488012]
[1761832890510,1.32415251,107910.0,107900.0,0.02488012]
[1761832890714,1.32695251,107910.0,107900.0,0.02488012]
[1761832890909,1.08538,107910.0,107900.0,0.02488012]
[1761832891102,1.32695251,107910.0,107900.0,0.02488012]
[1761832891304,1.32415251,107910.0,107900.0,0.02488012]
[1761832891504,1.42408654,107910.0,107900.0,0.02488012]
[1761832891709,1.42688654,107910.0,107900.0,0.02488012]
[1761832892105,1.42408654,107910.0,107900.0,0.02488012]
[1761832892408,0.0487,107890.0,107880.0,0.08317874]
[1761832892611,0.3287,107890.0,107880.0,0.0331735]
[1761832893208,0.93107251,107890.0,107880.0,0.08317874]
[1761832893516,0.06386,107880.0,107870.0,0.05000524]
[1761832893714,1.32907251,107880.0,107870.0,0.05000524]
[1761832894309,1.0875,107880.0,107870.0,0.05000524]
[1761832894509,1.32907251,107880.0,107870.0,0.05000524]
[1761832894711,1.42900654,107880.0,107870.0,0.05000524]
[1761832895112,0.16379403,107880.0,107870.0,0.3608]
[1761832895313,0.13911403,107880.0,107870.0,0.65337775]
[1761832895518,0.01516,107880.0,107870.0,0.60337251]
[1761832896011,0.37596,107900.0,107870.0,0.60337251]
[1761832896012,0.709,107900.0,107870.0,0.60617251]
[1761832896314,0.0487,107890.0,107880.0,0.41066185]
[1761832896512,0.0687,107890.0,107880.0,0.41066185]
[1761832896714,0.0487,107890.0,107880.0,0.41066185]
[1761832897318,0.01516,107900.0,107880.0,0.65223436]
[1761832897519,0.01516,107900.0,107890.0,0.3608]
[1761832897707,0.01516,107900.0,107890.0,0.60237251]
[1761832898007,0.01516,107900.0,107890.0,0.3608]
[1761832898210,0.13911403,107900.0,107890.0,0.3608]
[1761832898416,0.16379403,107900.0,107890.0,0.3608]
[1761832899114,0.01516,107900.0,107890.0,0.65223436]
[1761832899314,0.01616,107900.0,107890.0,0.65223436]
[1761832899712,0.01816,107900.0,107890.0,0.65223436]
[1761832901012,0.01816,107900.0,107890.0,0.65503436]
[1761832901615,0.01816,107900.0,107890.0,0.65223436]
[1761832901812,0.003,107900.0,107890.0,1.34773726]
[1761832902211,0.01816,107900.0,107890.0,1.34492895]
[1761832902519,0.01816,107900.0,107890.0,0.65222605]
[1761832903317,0.01616,107900.0,107890.0,0.65422605]
[1761832903513,0.01616,107900.0,107890.0,0.74972895]
[1761832903712,0.001,107900.0,107890.0,0.74972895]
[1761832904012,0.06386,107920.0,107890.0,0.69987541]
[1761832904217,0.06386,107920.0,107910.0,0.60237251]
[1761832904411,0.06386,107920.0,107910.0,0.3608]
[1761832905015,0.06386,107920.0,107910.0,0.60237251]
[1761832905208,0.06586,107920.0,107910.0,0.60237251]
[1761832905414,0.06686,107920.0,107910.0,0.60237251]
[1761832906418,0.17686,107920.0,107910.0,0.3608]
[1761832906617,0.0487,107910.0,107900.0,0.3608]
[1761832907015,0.0687,107910.0,107900.0,0.3608]
[1761832907719,0.0487,107910.0,107900.0,0.3608]
[1761832908221,0.06386,107920.0,107900.0,0.60237251]
[1761832908429,0.16379403,107920.0,107910.0,0.60237251]
[1761832908614,0.11509403,107920.0,107910.0,0.69505821]
[1761832908815,0.01516,107940.0,107910.0,0.69781821]
[1761832909022,0.01516,107940.0,107930.0,0.60237251]
[1761832909517,0.01516,107940.0,107930.0,1.05584111]
[1761832909818,0.03918,107960.0,107940.0,0.0926596]
[1761832910022,0.01516,107960.0,107950.0,0.96317251]
[1761832911513,0.03980601,107980.0,107960.0,0.0926418]
[1761832911815,0.03980601,107980.0,107970.0,0.60237251]
[1761832912020,0.01516,107980.0,107970.0,0.60237251]
[1761832912711,0.08269,107980.0,107970.0,0.3608]
[1761832912917,0.02465,107970.0,107960.0,0.60237251]
[1761832913221,0.06753,107970.0,107960.0,0.3608]
[1761832914021,0.04753,107970.0,107960.0,0.3608]
[1761832914218,0.06753,107970.0,107960.0,0.3608]
[1761832914914,0.34753,107970.0,107950.0,0.60237251]